fUSD/lending_fUSD_20250804
["ID","MTS","AMOUNT","RATE_DAILY","PERIOD"]
[377246933,1754306073118,-770.36,0.00042465,2]
[377246934,1754306073127,-1946.52,0.00042465,2]
[377246935,1754306073136,-979.61,0.00042465,2]
[377246936,1754306073146,-400.0,0.00042465,2]
[377246937,1754306073156,-400.0,0.00042465,2]
[377246938,1754306073165,-860.7,0.00042465,2]
[377246939,1754306073175,-537.4,0.00042465,2]
[377246940,1754306073184,-2101.73,0.00042465,2]
[377246941,1754306073194,-537.04,0.00042465,2]
[377246942,1754306073204,-450.14,0.00042465,2]
[377246943,1754306073213,-798.27,0.00042465,2]
[377246944,1754306073223,-645.5,0.00042465,2]
[377246945,1754306073232,-1175.36,0.00042465,2]
[377246946,1754306073241,-456.48,0.00042465,2]
[377246947,1754306073251,-939.52,0.00042465,2]
[377246948,1754306073261,-482.35,0.00042465,2]
[377246949,1754306073270,-1154.12,0.00042465,2]
[377246950,1754306073279,-400.0,0.00042465,2]
[377246951,1754306073289,-1226.27,0.00042465,2]
[377246952,1754306073298,-842.4,0.00042465,2]
[377246953,1754306073308,-400.0,0.00042465,2]
[377246954,1754306073318,-869.19,0.00042465,2]
[377246955,1754306073327,-700.37,0.00042465,2]
[377246956,1754306073336,-400.0,0.00042465,2]
[377246957,1754306073346,-1791.49,0.00042465,2]
[377246958,1754306073355,-1000.94,0.00042465,2]
[377246959,1754306073365,-1221.49,0.00042465,2]
[377246960,1754306073374,-400.0,0.00042465,2]
[377246961,1754306073383,-1747.77,0.00042465,2]
[377246962,1754306073393,-400.0,0.00042465,2]
[377246963,1754306073402,-1316.83,0.00042465,2]
[377246964,1754306073412,-1344.32,0.00042465,2]
[377246965,1754306073421,-755.49,0.00042465,2]
[377246966,1754306073431,-778.88,0.00042465,2]
[377246967,1754306073441,-991.24,0.00042465,2]
[377246968,1754306073451,-786.99,0.00042465,2]
[377246969,1754306073461,-444.22,0.00042465,2]
[377246970,1754306073470,-1258.35,0.00042465,2]
[377246971,1754306073481,-1539.3,0.00042465,2]
[377246972,1754306073491,-400.0,0.00042465,2]
[377246973,1754306073501,-400.0,0.00042465,2]
[377246974,1754306073511,-330.04218546,0.00042465,2]
[377246975,1754306073522,-1182.86,0.00042465,2]
[377246976,1754306073532,-1113.84,0.00042465,2]
[377246977,1754306073541,-1278.85,0.00042465,2]
[377246978,1754306073551,-4729.89,0.00042465,2]
[377246979,1754306073561,-454.82,0.00042465,2]
[377246980,1754306073571,-1031.98,0.00042465,2]
[377246981,1754306073581,-775.41,0.00042465,2]
[377246982,1754306073591,-1202.77,0.00042465,2]
[377246983,1754306073601,-400.0,0.00042465,2]
[377246984,1754306073611,-400.0,0.00042465,2]
[377246985,1754306073621,-492.55,0.00042465,2]
[377246986,1754306073631,-1675.62,0.00042465,2]
[377246987,1754306073641,-1481.93,0.00042465,2]
[377246988,1754306073651,-584.39,0.00042465,2]
[377246989,1754306073660,-679.61,0.00042465,2]
[377246990,1754306073670,-744.37,0.00042465,2]
[377246991,1754306073680,-1340.53,0.00042465,2]
[377246992,1754306073689,-2502.12,0.00042465,2]
[377246993,1754306073698,-2328.28,0.00042465,2]
[377246994,1754306073708,-815.04,0.00042465,2]
[377246995,1754306073717,-1484.28,0.00042465,2]
[377246996,1754306073727,-1012.72,0.00042465,2]
[377246997,1754306073738,-1969.15,0.00042465,2]
[377246998,1754306073748,-1435.3,0.00042465,2]
[377246999,1754306073758,-400.0,0.00042465,2]
[377247000,1754306073767,-400.0,0.00042465,2]
[377247001,1754306073777,-913.42,0.00042465,2]
[377247002,1754306073787,-1703.95,0.00042465,2]
[377247003,1754306073797,-2504.25,0.00042465,2]
[377247004,1754306073806,-1030.22,0.00042465,2]
[377247005,1754306073816,-400.0,0.00042465,2]
[377247006,1754306073825,-741.38,0.00042465,2]
[377247007,1754306073834,-400.0,0.00042465,2]
[377247008,1754306073843,-1237.75,0.00042465,2]
[377247009,1754306073853,-623.67,0.00042465,2]
[377247010,1754306073863,-400.0,0.00042465,2]
[377247011,1754306073872,-602.81,0.00042465,2]
[377247012,1754306073881,-400.0,0.00042465,2]
[377247013,1754306073891,-992.32,0.00042465,2]
[377247014,1754306073901,-400.0,0.00042465,2]
[377247015,1754306073911,-537.5,0.00042465,2]
[377247016,1754306073921,-956.99,0.00042465,2]
[377247017,1754306073931,-630.59,0.00042465,2]
[377247018,1754306073940,-400.0,0.00042465,2]
[377247019,1754306073950,-1301.61,0.00042465,2]
[377247020,1754306073959,-1889.25,0.00042465,2]
[377247021,1754306073973,-641.71,0.00042465,2]
[377247022,1754306073983,-1585.73,0.00042465,2]
[377247023,1754306073993,-548.4285785,0.00042465,2]
[377247024,1754306074002,-924.72,0.00042465,2]
[377247025,1754306074013,-2092.15,0.00042465,2]
[377247026,1754306074023,-533.38,0.00042465,2]
[377247027,1754306074033,-890.3,0.00042465,2]
[377247028,1754306074044,-501.38,0.00042465,2]
[377247029,1754306074054,-1366.75,0.00042465,2]
[377247030,1754306074063,-1059.24,0.00042465,2]
[377247031,1754306074073,-1441.16,0.00042465,2]
[377247032,1754306074082,-690.08,0.00042465,2]
[377247033,1754306074092,-990.2,0.00042465,2]
[377247034,1754306074102,-803.42,0.00042465,2]
[377247035,1754306074112,-645.51,0.00042465,2]
[377247036,1754306074121,-545.68,0.00042465,2]
[377247037,1754306074131,-400.0,0.00042465,2]
[377247038,1754306074141,-726.21,0.00042465,2]
[377247039,1754306074150,-506.95,0.00042465,2]
[377247040,1754306074161,-400.0,0.00042465,2]
[377247041,1754306074170,-788.62,0.00042465,2]
[377247042,1754306074180,-931.05,0.00042465,2]
[377247043,1754306074190,-2071.07,0.00042465,2]
[377247044,1754306074200,-552.88,0.00042465,2]
[377247045,1754306074210,-1077.59,0.00042465,2]
[377247046,1754306074219,-400.0,0.00042465,2]
[377247047,1754306074228,-551.2,0.00042465,2]
[377247048,1754306074238,-400.0,0.00042465,2]
[377247049,1754306074247,-1479.72,0.00042465,2]
[377247050,1754306074257,-418.78,0.00042465,120]
[377247051,1754306074266,-400.0,0.00042465,2]
[377247052,1754306074276,-628.0,0.00042465,2]
[377247053,1754306074285,-150.0,0.00042465,2]
[377247054,1754306074295,-400.0,0.00042465,2]
[377247055,1754306074305,-1047.92,0.00042465,2]
[377247056,1754306074315,-1186.41,0.00042465,2]
[377247057,1754306074324,-882.59,0.00042465,2]
[377247058,1754306074334,-845.07,0.00042465,2]
[377247059,1754306074343,-627.42,0.00042465,2]
[377247060,1754306074353,-1654.02,0.00042465,2]
[377247061,1754306074363,-928.07,0.00042465,2]
[377247062,1754306074373,-463.65,0.00042465,2]
[377247063,1754306074382,-1368.23,0.00042465,2]
[377247064,1754306074392,-987.02,0.00042465,2]
[377247065,1754306074402,-1022.16,0.00042465,2]
[377247066,1754306074412,-1127.8,0.00042465,2]
[377247067,1754306074421,-1457.97,0.00042465,2]
[377247068,1754306074431,-1263.43,0.00042465,2]
[377247069,1754306074441,-1212.72,0.00042465,2]
[377247070,1754306074451,-732.77,0.00042465,2]
[377247071,1754306074462,-1364.75,0.00042465,2]
[377247072,1754306074472,-1963.71,0.00042465,2]
[377247073,1754306074484,-3088.08,0.00042465,2]
[377247074,1754306074494,-669.31,0.00042465,2]
[377247075,1754306074503,-400.0,0.00042465,2]
[377247076,1754306074514,-1338.78,0.00042465,2]
[377247077,1754306074524,-470.83,0.00042465,2]
[377247078,1754306074534,-1725.86,0.00042465,2]
[377247079,1754306074543,-1157.0,0.00042465,2]
[377247080,1754306074697,-400.0,0.00042465,2]
[377247081,1754306074707,-888.73,0.00042465,2]
[377247082,1754306074717,-719.82,0.00042465,2]
[377247083,1754306074726,-1049.12,0.00042465,2]
[377247084,1754306074736,-574.83,0.00042465,2]
[377247085,1754306074746,-1718.88,0.00042465,2]
[377247086,1754306074756,-1630.61,0.00042465,2]
[377247087,1754306074766,-629.17,0.00042465,2]
[377247088,1754306074775,-666.66,0.00042465,2]
[377247089,1754306074786,-400.0,0.00042465,2]
[377247090,1754306074795,-1303.32,0.00042465,2]
[377247091,1754306074807,-603.36,0.00042465,2]
[377247092,1754306074817,-1485.45,0.00042465,2]
[377247093,1754306074826,-495.64,0.00042465,2]
[377247094,1754306074836,-718.11,0.00042465,2]
[377247095,1754306074845,-400.0,0.00042465,2]
[377247096,1754306074855,-1307.14,0.00042465,2]
[377247097,1754306074865,-1110.24,0.00042465,2]
[377247098,1754306074875,-1527.44,0.00042465,2]
[377247099,1754306074884,-869.15,0.00042465,2]
[377247100,1754306074894,-536.27,0.00042465,2]
[377247101,1754306074904,-1091.81,0.00042465,2]
[377247102,1754306074914,-1130.18,0.00042465,2]
[377247103,1754306074924,-1075.79,0.00042465,2]
[377247104,1754306074933,-1117.05,0.00042465,2]
[377247105,1754306074943,-905.65,0.00042465,2]
[377247106,1754306074952,-471.33,0.00042465,2]
[377247107,1754306074964,-400.0,0.00042465,2]
[377247108,1754306074974,-966.32,0.00042465,2]
[377247109,1754306074984,-798.59,0.00042465,2]
[377247110,1754306074993,-507.42239746,0.00042465,2]
[377247111,1754306075003,-1284.95,0.00042465,2]
[377247112,1754306075012,-1354.83,0.00042465,2]
[377247113,1754306075022,-1268.26,0.00042465,2]
[377247114,1754306075031,-862.24,0.00042465,2]
[377247115,1754306075040,-699.87,0.00042465,2]
[377247116,1754306075050,-1400.07,0.00042465,2]
[377247117,1754306075060,-912.08,0.00042465,2]
[377247118,1754306075069,-631.36,0.00042465,2]
[377247119,1754306075079,-1343.86,0.00042465,2]
[377247120,1754306075089,-743.43,0.00042465,2]
[377247121,1754306075098,-616.73,0.00042465,2]
[377247122,1754306075108,-927.18,0.00042465,2]
[377247123,1754306075118,-875.84,0.00042465,2]
[377247124,1754306075128,-1329.19,0.00042465,2]
[377247125,1754306075140,-434.19,0.00042465,2]
[377247126,1754306075150,-418.89,0.00042465,2]
[377247127,1754306075160,-1333.24,0.00042465,2]
[377247128,1754306075170,-1658.94,0.00042465,2]
[377247129,1754306075180,-400.0,0.00042465,2]
[377247130,1754306075189,-967.63,0.00042465,2]
[377247131,1754306075198,-414.76,0.00042465,2]
[377247132,1754306075208,-400.0,0.00042465,2]
[377247133,1754306075218,-469.78569867,0.00042465,2]
[377247134,1754306075228,-944.68,0.00042465,2]
[377247135,1754306075237,-1263.4,0.00042465,2]
[377247136,1754306075247,-1252.38,0.00042465,2]
[377247137,1754306075257,-184.34375015,0.00042465,2]
[377247138,1754306075267,-189.0,0.00042465,120]
[377247139,1754306075277,-412.29,0.00042465,2]
[377247140,1754306075286,-605.41,0.00042465,2]
[377247141,1754306075296,-1748.2,0.00042465,2]
[377247142,1754306075306,-1117.53,0.00042465,2]
[377247143,1754306075315,-2048.38,0.00042465,2]
[377247144,1754306075324,-3038.05,0.00042465,2]
[377247145,1754306075334,-611.63,0.00042465,2]
[377247146,1754306075343,-886.22,0.00042465,2]
[377247147,1754306075353,-1068.97,0.00042465,2]
[377247148,1754306075363,-673.68,0.00042465,2]
[377247149,1754306075373,-1348.61,0.00042465,2]
[377247150,1754306075382,-590.51,0.00042465,2]
[377247151,1754306075392,-4263.58,0.00042465,2]
[377247152,1754306075402,-400.0,0.00042465,2]
[377247153,1754306075413,-841.94,0.00042465,2]
[377247154,1754306075423,-1374.4,0.00042465,2]
[377247155,1754306075433,-661.31,0.00042465,2]
[377247156,1754306075443,-888.64,0.00042465,2]
[377247157,1754306075453,-1281.23,0.00042465,2]
[377247158,1754306075463,-1558.5,0.00042465,2]
[377247159,1754306075473,-1778.85,0.00042465,2]
[377247160,1754306075483,-838.38,0.00042465,2]
[377247161,1754306075493,-1793.86,0.00042465,2]
[377247162,1754306075502,-632.03,0.00042465,2]
[377247163,1754306075512,-719.42,0.00042465,2]
[377247164,1754306075522,-2346.34,0.00042465,2]
[377247165,1754306075532,-2208.08,0.00042465,2]
[377247166,1754306075542,-400.0,0.00042465,2]
[377247167,1754306075552,-2121.06,0.00042465,2]
[377247168,1754306075563,-959.16,0.00042465,2]
[377247169,1754306075573,-1009.99,0.00042465,2]
[377247170,1754306075582,-2028.4,0.00042465,2]
[377247171,1754306075593,-1169.71,0.00042465,2]
[377247172,1754306075602,-400.0,0.00042465,2]
[377247173,1754306075612,-693.34,0.00042465,2]
[377247174,1754306075622,-6220.24,0.00042465,2]
[377247175,1754306075632,-1366.07,0.00042465,2]
[377247176,1754306075642,-1689.54,0.00042465,2]
[377247177,1754306075652,-1110.66,0.00042465,2]
[377247178,1754306075662,-487.34,0.00042465,2]
[377247179,1754306075671,-1421.12,0.00042465,2]
[377247180,1754306075681,-401.93,0.00042465,2]
[377247181,1754306075691,-2122.58,0.00042465,2]
[377247182,1754306075700,-638.35235729,0.00042465,2]
[377247183,1754306077137,-458.53764271,0.00042465,2]
[377247184,1754306077152,-548.21,0.00042465,2]
[377247185,1754306077162,-558.13,0.00042465,2]
[377247186,1754306077171,-400.0,0.00042465,2]
[377247187,1754306077181,-2428.92,0.00042465,2]
[377247188,1754306077190,-1162.47,0.00042465,2]
[377247189,1754306077199,-2714.78235729,0.00042465,2]
[377247190,1754306077263,-600.0,0.00036242,2]
[377247191,1754306077273,-247.79380593,0.00038356,2]
[377247192,1754306077323,-152.20619407,0.00038356,2]
[377247193,1754306077333,-191.33296079,0.0003863,2]
[377247194,1754306077346,-208.66703921,0.0003863,2]
[377247195,1754306077355,-383.35296079,0.00039178,2]
[377247196,1754306077367,-794.42703921,0.00039178,2]
[377247197,1754306077376,-522.25374355,0.00039452,2]
[377247198,1754306077386,-400.0,0.0004,2]
[377247199,1754306077395,-1813.00764271,0.00042465,2]
[377247200,1754306077404,-683.16,0.00042465,2]
[377247201,1754306077414,-688.63,0.00042465,2]
[377247202,1754306077424,-787.49,0.00042465,2]
[377247203,1754306077433,-400.0,0.00042465,2]
[377247204,1754306077442,-642.79,0.00042465,2]
[377247205,1754306077452,-192.02824491,0.00042465,2]
[377247206,1754306077461,-5396.72,0.00042465,2]
[377247207,1754306077471,-1940.04,0.00042465,2]
[377247208,1754306077480,-400.0,0.00042465,2]
[377247209,1754306077489,-4563.07,0.00042465,2]
[377247210,1754306077498,-1666.37,0.00042465,2]
[377247211,1754306077507,-1973.82,0.00042465,2]
[377247212,1754306077517,-1536.5,0.00042465,2]
[377247213,1754306077526,-1125.71,0.00042465,2]
[377247214,1754306077536,-778.62,0.00042465,2]
[377247215,1754306077545,-8227.11,0.00042465,2]
[377247216,1754306077554,-461.7929307,0.00042465,2]
[377247217,1754306077564,-524.97,0.00042465,2]
[377247218,1754306077574,-962.89,0.00042465,2]
[377247219,1754306077583,-770.91,0.00042465,2]
[377247220,1754306077592,-11138.27,0.00042465,2]
[377247221,1754306077602,-2940.43,0.00042465,2]
[377247222,1754306077611,-802.26,0.00042465,2]
[377247223,1754306077621,-458.47,0.00042465,2]
[377247224,1754306077630,-1728.23,0.00042465,2]
[377247225,1754306077639,-2159.66,0.00042465,2]
[377247226,1754306077649,-1858.96879096,0.00042465,2]
[377247227,1754306077662,-188.76120904,0.00042465,2]
[377247228,1754306077670,-445.29,0.00042465,2]
[377247229,1754306077679,-34.25722242,0.00042465,2]
[377247231,1754306095493,1499.0,0.0003013,120]
[377247232,1754306096705,1366.0,0.0003013,120]
[377247233,1754306097633,215.39,0.00013699,2]
[377247234,1754306099740,206.0,0.0003013,120]
[377247235,1754306099992,300.0,0.00015068,2]
[377247236,1754306100222,300.0,0.00015068,2]
[377247237,1754306100378,250.0,0.00015068,2]
[377247238,1754306101452,500.0,0.00015966,2]
[377247239,1754306101836,683.44,0.0003013,120]
[377247240,1754306102016,500.0,0.00015966,2]
[377247241,1754306102266,500.0,0.00015966,2]
[377247242,1754306102664,500.0,0.00015966,2]
[377247243,1754306102876,500.0,0.00015966,2]
[377247244,1754306103198,500.0,0.00015966,2]
[377247245,1754306114106,896.0,0.0003013,120]
[377247246,1754306115033,524.08841236,0.00015966,2]
[377247247,1754306115148,286.0,0.0003013,120]
[377247248,1754306115209,349.3922749,0.00015966,2]
[377247249,1754306137718,300.0,0.00015068,2]
[377247250,1754306137759,300.0,0.00014384,2]
[377247251,1754306137901,300.0,0.00015068,2]
[377247252,1754306137936,300.0,0.00014384,2]
[377247254,1754306151769,1200.0,0.00015067,2]
[377247255,1754306152092,300.0,0.00015965,2]
[377247256,1754306152286,309.7,0.00027397,120]
[377247257,1754306152314,150.0,0.00027397,120]
[377247259,1754306152618,338.999999,0.00027397,120]
[377247260,1754306152652,162.13038592,0.00027397,120]
[377247261,1754306152682,265.3,0.00027397,120]
[377247262,1754306152770,230.0,0.00027397,120]
[377247263,1754306155287,482.16336972,0.00026849,120]
[377247264,1754306161744,500.0,0.00016764,2]
[377247265,1754306161898,500.0,0.00016764,2]
[377247266,1754306162103,500.0,0.00016764,2]
[377247267,1754306162655,500.0,0.00016764,2]
[377247268,1754306162862,500.0,0.00016764,2]
[377247269,1754306163134,232.25909509,0.00016764,2]
[377247270,1754306163337,691.0,0.0003013,120]
[377247271,1754306164129,1086.0,0.0003013,120]
[377247272,1754306165152,310.0,0.0003013,120]
[377247273,1754306168273,1000.0,0.00030136,120]
[377247274,1754306168960,-154.59,0.00019676,2]
[377247275,1754306169161,300.0,0.0001844,2]
[377247276,1754306170007,300.0,0.0001844,2]
[377247277,1754306170089,300.0,0.0001822,2]
[377247278,1754306172403,-280.0690496,0.0001935,2]
[377247279,1754306175484,-19.9309504,0.0001935,2]
[377247280,1754306175508,-95.41,0.00019676,2]
[377247281,1754306175530,-104.37369212,0.00019743,2]
[377247282,1754306196823,309.34,0.00030137,120]
[377247283,1754306196877,-481.0,0.00036412,60]
[377247284,1754306196901,-481.0,0.00036412,60]
[377247285,1754306196924,-481.0,0.00036412,60]
[377247286,1754306196946,-481.0,0.00036412,60]
[377247287,1754306196969,-485.0,0.00036412,60]
[377247288,1754306196995,-481.0,0.00036412,60]
[377247289,1754306197020,-233.0,0.00036412,60]
[377247290,1754306197045,-169.5189546,0.00036412,3]
[377247291,1754306197067,-300.5,0.00036412,120]
[377247297,1754306230064,500.0,0.00017883,2]
[377247298,1754306231249,238.52811756,0.00017883,2]
[377247299,1754306262376,742.24820069,0.0003013,120]
[377247300,1754306264670,542.0,0.0003013,120]
[377247302,1754306268173,168.0,0.0003013,120]
[377247303,1754306319106,540.0,0.0003013,120]
[377247304,1754306321547,283.0,0.0003013,120]
[377247307,1754306343190,-179.44114783,0.00019643,2]
[377247308,1754306344949,-152.35755919,0.00019643,2]
[377247309,1754306347576,-251.92129298,0.00019643,2]
[377247310,1754306372396,-165.050098,0.00019643,2]
[377247311,1754306376122,-211.54718252,0.00019785,2]
[377247312,1754306378417,-88.45281748,0.00019785,2]
[377247313,1754306378440,-92.050098,0.00019828,2]
[377247314,1754306382421,-80.155702,0.00019828,2]
[377247315,1754306382445,-70.95922643,0.00020343,2]
[377247316,1754306384354,724.63368945,0.0003013,120]
[377247317,1754306385378,-151.0,0.00020343,2]
[377247318,1754306386300,292.18169379,0.0003013,120]
[377247319,1754306387598,-78.04077357,0.00020343,2]
[377247320,1754306387622,-72.95922643,0.00020421,2]
[377247321,1754306391053,-183.95180265,0.00020421,2]
[377247323,1754306394406,-211.425049,0.00020421,2]
[377247324,1754306403436,154.34920433,0.00029534,120]
[377247326,1754306433273,-160.68507157,0.00020544,2]
[377247327,1754306435613,-139.31492843,0.00020544,2]
[377247328,1754306435636,-85.05794362,0.00020544,2]
[377247329,1754306470838,-160.0,0.00026247,19]
[377247330,1754306470867,-403.0,0.00030137,120]
[377247331,1754306470892,-380.02154895,0.00030137,120]
[377247332,1754306470917,-313.50107745,0.00030137,120]
[377247333,1754306470941,-310.17505387,0.00030137,120]
[377247334,1754306470966,-310.00875269,0.00030137,120]
[377247335,1754306470990,-310.00043763,0.00030137,120]
[377247336,1754306471013,-310.00002188,0.00030137,120]
[377247337,1754306471039,-160.0,0.00031726,48]
[377247338,1754306471066,-280.77,0.00033446,120]
[377247339,1754306471091,-305.61,0.00034459,120]
[377247340,1754306471115,-150.0,0.000347,30]
[377247341,1754306471143,-465.3,0.00035,10]
[377247342,1754306471169,-166.1,0.00035911,40]
[377247343,1754306471195,-247.76,0.00036445,120]
[377247344,1754306471223,-185.82,0.00037167,120]
[377247345,1754306471249,-280.0,0.000374,30]
[377247346,1754306471275,-1575.1,0.00037695,15]
[377247347,1754306471300,-15090.39,0.00037873,30]
[377247348,1754306471326,-3215.73590394,0.00038256,10]
[377247349,1754306471355,-202.12107474,0.00038256,15]
[377247350,1754306471382,-2500.0,0.00038304,10]
[377247351,1754306471709,-2500.0,0.00038313,10]
[377247352,1754306471734,-2500.0,0.00038322,10]
[377247353,1754306471759,-841.59890878,0.00038322,10]
[377247354,1754306471784,-2500.0,0.0003833,10]
[377247355,1754306471809,-2500.0,0.00038339,10]
[377247356,1754306471834,-150.0,0.00038345,120]
[377247357,1754306471860,-2500.0,0.00038348,10]
[377247358,1754306471885,-1091.57471034,0.00038355,30]
[377247359,1754306471911,-151.74547233,0.00038356,12]
[377247360,1754306471974,-150.0,0.00038482,120]
[377247361,1754306472000,-519.0,0.00038603,120]
[377247362,1754306472024,-185.82,0.00038611,120]
[377247363,1754306472055,-150.0,0.00038619,120]
[377247364,1754306472082,-151.0,0.0003863,14]
[377247365,1754306472107,-151.0,0.0003863,14]
[377247366,1754306472132,-151.0,0.0003863,14]
[377247367,1754306472157,-151.0,0.0003863,14]
[377247368,1754306472184,-253.529281,0.0003863,14]
[377247369,1754306472209,-253.529281,0.0003863,14]
[377247370,1754306472237,-151.0,0.0003863,14]
[377247371,1754306472265,-151.0,0.0003863,14]
[377247372,1754306472318,-151.0,0.000387,14]
[377247373,1754306472345,-151.0,0.000387,14]
[377247374,1754306472371,-189.17352101,0.00038756,120]
[377247375,1754306472396,-151.0,0.00038904,14]
[377247376,1754306472424,-151.0,0.00038904,14]
[377247377,1754306472451,-151.0,0.00038904,14]
[377247378,1754306472479,-151.0,0.00038904,14]
[377247379,1754306472504,-151.0,0.00038904,14]
[377247380,1754306472529,-151.0,0.00038904,14]
[377247381,1754306472557,-253.529281,0.00038904,14]
[377247382,1754306472583,-253.529281,0.00038904,14]
[377247383,1754306472610,-253.529281,0.00038904,14]
[377247384,1754306472635,-253.529281,0.00038904,14]
[377247385,1754306472666,-151.0,0.00038904,14]
[377247386,1754306472709,-151.0,0.00038904,14]
[377247387,1754306472735,-151.0,0.00038904,14]
[377247388,1754306472767,-151.0,0.00038904,14]
[377247389,1754306472794,-282.02441157,0.00038904,10]
[377247390,1754306472820,-846.39,0.00039,14]
[377247391,1754306472844,-214.21,0.00039,30]
[377247392,1754306472874,-151.0,0.00039178,14]
[377247393,1754306472898,-151.0,0.00039178,14]
[377247394,1754306472925,-151.0,0.00039178,14]
[377247395,1754306472949,-151.0,0.00039178,14]
[377247396,1754306472979,-253.529281,0.00039178,14]
[377247397,1754306473012,-253.529281,0.00039178,14]
[377247398,1754306473074,-151.0,0.00039178,14]
[377247399,1754306473101,-300.46,0.00039422,120]
[377247400,1754306473126,-150.5,0.00039432,120]
[377247401,1754306473151,-150.5,0.00039442,120]
[377247402,1754306473179,-151.0,0.00039452,14]
[377247403,1754306473206,-151.0,0.00039452,14]
[377247404,1754306473231,-151.0,0.00039452,14]
[377247405,1754306473257,-151.0,0.00039452,14]
[377247406,1754306473284,-151.0,0.00039452,14]
[377247407,1754306473310,-253.529281,0.00039452,14]
[377247408,1754306473335,-253.529281,0.00039452,14]
[377247409,1754306473363,-253.529281,0.00039452,14]
[377247410,1754306473391,-253.529281,0.00039452,14]
[377247411,1754306473428,-151.0,0.00039452,14]
[377247412,1754306473458,-151.0,0.00039452,14]
[377247413,1754306473488,-151.0,0.00039452,14]
[377247414,1754306473515,-151.0,0.00039452,14]
[377247415,1754306473546,-151.0,0.00039452,14]
[377247416,1754306473579,-151.0,0.00039452,14]
[377247417,1754306473608,-151.0,0.00039452,14]
[377247418,1754306473636,-18824.47,0.000395,14]
[377247419,1754306473663,-1575.1,0.00039595,15]
[377247420,1754306473690,-356.0,0.00039696,120]
[377247421,1754306473716,-356.0,0.00039706,120]
[377247422,1754306473748,-356.0,0.00039716,120]
[377247423,1754306473775,-151.0,0.00039726,14]
[377247424,1754306473804,-151.0,0.00039726,14]
[377247425,1754306473830,-151.0,0.00039726,14]
[377247426,1754306473858,-253.529281,0.00039726,14]
[377247427,1754306473885,-253.529281,0.00039726,14]
[377247428,1754306473915,-400.0,0.00039726,120]
[377247429,1754306473956,-151.0,0.00039726,14]
[377247430,1754306473993,-151.0,0.00039726,14]
[377247431,1754306474028,-151.0,0.00039726,14]
[377247432,1754306474059,-600.0,0.00039879,14]
[377247433,1754306474086,-600.0,0.00039879,14]
[377247434,1754306474112,-600.0,0.00039879,14]
[377247435,1754306474138,-235.15,0.00039879,14]
[377247436,1754306474163,-200.0,0.00039951,20]
[377247437,1754306474652,-151.0,0.00039999,14]
[377247438,1754306474679,-151.0,0.00039999,14]
[377247439,1754306474709,-151.0,0.00039999,14]
[377247440,1754306474735,-151.0,0.00039999,14]
[377247441,1754306474760,-169.88563845,0.00039999,14]
[377247442,1754306474787,-253.529281,0.00039999,14]
[377247443,1754306474814,-253.529281,0.00039999,14]
[377247444,1754306474839,-253.529281,0.00039999,14]
[377247445,1754306474865,-253.529281,0.00039999,14]